bitfinex/quotes_ETHUSD_20250414
["timestamp","ask_amount","ask_price","bid_price","bid_amount"]
[1744602048228,0.55853311,1628.5,1628.4,0.24556831]
[1744602048437,0.06117192,1628.5,1628.2,5.74218]
[1744602048595,0.06117192,1628.5,1628.3,0.24447474]
[1744602049332,4.97339192,1628.6,1628.3,0.24447474]
[1744602049536,4.91263,1628.5,1628.3,0.24447474]
[1744602049833,4.97336192,1628.6,1628.3,0.24447474]
[1744602050036,9.88576192,1628.6,1628.3,0.24447474]
[1744602050734,4.97336192,1628.6,1628.3,0.24447474]
[1744602051438,9.88573192,1628.6,1628.3,0.24447474]
[1744602051638,4.97336192,1628.6,1628.3,0.24447474]
[1744602051819,6.17709811,1628.6,1628.3,0.24447474]
[1744602052026,0.06117192,1628.6,1628.3,5.15738474]
[1744602052223,4.97310192,1628.7,1628.3,5.15738474]
[1744602052721,4.97310192,1628.7,1628.4,4.91279]
[1744602053441,4.97310192,1628.7,1628.3,4.91291]
[1744602053442,4.97310192,1628.7,1628.5,0.24352516]
[1744602053648,4.91219,1628.6,1628.2,5.74216]
[1744602053944,0.06117192,1628.5,1628.3,0.24457595]
[1744602054105,0.06117192,1628.5,1628.3,5.15766595]
[1744602054304,0.06117192,1628.7,1628.3,5.15751595]
[1744602054510,4.97326192,1628.7,1628.4,0.8288]
[1744602054711,5.47058811,1628.7,1628.4,0.8288]
[1744602055042,4.9123,1628.6,1628.5,0.24317132]
[1744602057339,0.55849811,1628.7,1628.5,0.24317132]
[1744602057644,4.97336192,1628.6,1628.5,0.24317132]
[1744602057804,0.06117192,1628.6,1628.5,0.24317132]
[1744602059541,4.97336192,1628.6,1628.5,0.24317132]
[1744602060422,4.97336192,1628.6,1628.2,5.74218]
[1744602060810,4.97336192,1628.6,1628.3,0.24422211]
[1744602061009,5.47069811,1628.6,1628.3,0.24422211]
[1744602061347,9.82516,1628.5,1628.3,0.24422211]
[1744602061533,4.97396192,1628.4,1628.3,0.24422211]
[1744602061853,4.9134,1628.2,1628.1,0.02]
[1744602062048,4.97457192,1628.2,1628.1,0.24617813]
[1744602062347,0.06117192,1628.2,1628.1,0.24617813]
[1744602062652,9.883,1628.6,1628.3,4.91309]
[1744602062807,4.97370192,1628.5,1628.4,0.2265219]
[1744602063007,4.91328,1628.3,1628.1,0.02]
[1744602063226,4.97457192,1628.2,1628.1,0.02]
[1744602063422,4.91328,1628.3,1628.1,0.02]
[1744602063423,4.97445192,1628.3,1628.1,0.02]
[1744602064049,4.9134,1628.2,1628.1,0.02]
[1744602064354,15.593,1628.2,1628.1,0.02]
[1744602064647,17.33835,1628.2,1628.1,0.02]
[1744602064845,14.7964,1628.2,1628.1,0.02]
[1744602070471,6.883,1628.2,1628.1,0.02]
[1744602070766,6.94417192,1628.2,1628.1,0.02]
[1744602071167,11.85757192,1628.2,1628.1,0.02]
[1744602071666,6.94417192,1628.2,1628.1,0.02]
[1744602074179,11.85757192,1628.2,1628.1,0.02]
[1744602077982,13.53465111,1628.2,1628.1,0.02]
[1744602078270,13.47347919,1628.2,1628.1,0.02]
[1744602079575,20.9620833,1628.2,1628.1,0.02]
[1744602080277,27.1320833,1628.2,1628.1,0.02]
[1744602080499,4.91575,1627.5,1627.2,0.8042]
[1744602080651,0.06117192,1627.7,1627.4,4.91568]
[1744602080850,3.0,1627.8,1627.5,5.91520045]
[1744602081055,3.06117192,1627.8,1627.6,4.9152]
[1744602081290,3.06117192,1627.8,1627.7,0.19740917]
[1744602081470,3.06117192,1627.8,1627.5,5.7196]
[1744602081668,3.06117192,1627.8,1627.6,0.19793514]
[1744602082249,6.885,1627.9,1627.6,10.02806514]
[1744602082452,6.94617192,1627.9,1627.6,5.70473165]
[1744602082654,4.91351,1628.2,1627.8,4.9146]
[1744602082901,4.91351,1628.2,1627.9,0.19635743]
[1744602083100,4.91351,1628.2,1627.9,4.91429]
[1744602083267,6.854,1628.3,1628.0,5.91277044]
[1744602083590,6.91517192,1628.3,1628.0,5.91277044]
[1744602084456,11.82827192,1628.3,1628.0,5.91277044]
[1744602084800,8.93901913,1628.3,1628.0,0.19487044]
[1744602084978,13.85221913,1628.3,1628.0,0.19487044]
[1744602085290,13.79104721,1628.3,1628.1,0.19434472]
[1744602085490,0.06117192,1628.2,1627.9,4.91417]
[1744602085697,0.06117192,1628.2,1628.0,0.19487044]
[1744602087102,1.06117192,1628.2,1628.0,0.19487044]
[1744602089823,1.0,1628.2,1628.1,5.7177]
[1744602090224,1.0,1628.2,1628.1,5.9106791]
[1744602091225,1.0,1628.2,1628.1,0.9969791]
[1744602091433,1.0,1628.2,1628.1,0.1929791]
[1744602091725,1.0,1628.2,1627.9,10.63244]
[1744602091881,1.0,1628.2,1628.1,0.19217011]
[1744602093534,1.0,1628.2,1628.1,5.90987011]
[1744602095826,1.0,1628.2,1628.1,0.99617011]
[1744602096743,1.0,1628.2,1628.1,5.90987011]
[1744602097041,1.0,1628.2,1628.1,0.99617011]
[1744602097204,1.0,1628.2,1628.1,0.19217011]
[1744602097543,1.0,1628.2,1628.0,4.91393]
[1744602097843,1.0,1628.2,1628.1,5.87987234]
[1744602102362,1.0,1628.2,1628.1,0.96617234]
[1744602102534,1.0,1628.2,1628.1,5.87987234]
[1744602107979,1.0,1628.2,1628.1,12.58987234]
[1744602108161,1.0,1628.2,1628.1,16.05328898]
[1744602108361,1.0,1628.2,1628.1,18.95610029]
[1744602109085,0.06117192,1629.0,1628.9,4.91128]
[1744602109244,4.86324768,1629.3,1628.9,4.91111]
[1744602109444,4.9244196,1629.3,1629.0,5.09370109]
[1744602110273,6.89314056,1629.3,1629.0,0.18284109]
[1744602110442,4.91068,1629.1,1628.8,0.8193]
[1744602110645,4.97185192,1629.1,1628.8,0.8193]
[1744602110846,4.97185192,1629.1,1628.8,5.73088]
[1744602111174,11.74208864,1629.3,1628.9,4.91117]
[1744602111385,11.80326056,1629.3,1628.9,9.82229]
[1744602111886,11.80326056,1629.3,1629.0,4.91097]
[1744602112187,7.75361288,1629.3,1628.9,4.91112]
[1744602112381,5.68575129,1629.2,1628.8,5.73085]
[1744602112684,10.65751321,1629.2,1628.9,0.18291093]
[1744602112885,4.91071,1629.1,1628.9,0.18291093]
[1744602114383,5.74692321,1629.2,1628.9,0.18291093]
[1744602114544,0.83653321,1629.2,1628.9,5.09419093]
[1744602114744,5.78489192,1629.3,1628.9,5.09419093]
[1744602115084,3.87477192,1629.3,1629.0,4.91086]
[1744602115268,3.87477192,1629.3,1628.9,0.18291093]
[1744602115269,6.853,1629.4,1629.1,10.82495059]
[1744602116388,6.853,1629.4,1629.1,11.90744565]
[1744602116759,4.97066192,1629.5,1629.1,11.90744565]
[1744602118150,3.06117192,1629.5,1629.2,4.91038]
[1744602118345,3.06117192,1629.5,1629.1,0.17539059]
[1744602118669,4.91019,1629.3,1628.9,5.73937]
[1744602118846,4.91019,1629.3,1629.0,0.75041004]
[1744602118847,4.97136192,1629.3,1629.0,0.75041004]
[1744602119506,4.97136192,1629.3,1629.0,0.17647304]
[1744602119653,4.91068,1629.1,1629.0,0.17647304]
[1744602119848,9.88278192,1629.1,1628.7,5.74008]
[1744602120176,4.91101,1629.0,1628.7,0.8282]
[1744602120580,4.9116,1628.8,1628.4,9.82538]
[1744602120883,0.8168,1628.9,1628.6,4.91197]
[1744602121055,0.8168,1629.1,1628.8,4.91158]
[1744602121384,5.78876192,1629.1,1628.7,9.82364]
[1744602121700,5.78880192,1629.1,1628.7,4.91178]
[1744602121981,5.78880192,1629.1,1628.7,9.8235]
[1744602122285,0.87797192,1629.1,1628.8,10.80536]
[1744602122477,0.8168,1629.1,1628.8,5.89383]
[1744602122664,0.8168,1629.1,1628.7,9.82358]
[1744602122865,0.06117192,1629.0,1628.8,4.91157]
[1744602123089,0.06117192,1629.0,1628.7,4.91172]
[1744602123489,0.8168,1629.1,1628.8,4.91155]
[1744602124492,0.06117192,1629.0,1628.7,4.91172]
[1744602124677,0.06117192,1629.0,1628.7,5.97693]
[1744602124996,0.06117192,1629.0,1628.6,0.8282]
[1744602124997,4.91143,1628.9,1628.6,0.8282]
[1744602125565,0.06117192,1628.9,1628.6,0.8282]
[1744602125810,0.06117192,1629.0,1628.6,5.8015056]
[1744602126005,0.06117192,1629.0,1628.7,4.91179]
[1744602126207,4.97217192,1629.0,1628.6,5.74011]
[1744602126407,0.06117192,1629.0,1628.6,1.893456]
[1744602126572,5.72751,1629.1,1628.7,4.91177]
[1744602126573,5.78868192,1629.1,1628.7,4.91177]
[1744602127410,5.78868192,1629.1,1628.7,9.82351]
[1744602127911,5.78868192,1629.1,1628.7,4.91174]
[1744602129517,0.8168,1629.1,1628.7,4.97313182]
[1744602129682,3.0,1629.2,1628.9,4.91109]
[1744602130010,3.0,1629.2,1628.9,9.82226]
[1744602130213,3.0,1629.2,1628.9,10.804486]
[1744602130507,7.97166192,1629.2,1628.8,4.91153]
[1744602130883,3.06117192,1629.2,1628.9,4.91126]
[1744602131416,7.97166192,1629.2,1628.8,9.8229]
[1744602131619,12.88222192,1629.2,1628.8,4.91141]
[1744602133012,7.97166192,1629.2,1628.8,4.91141]
[1744602133220,7.97166192,1629.2,1628.8,5.893737]
[1744602133408,7.97166192,1629.2,1628.8,10.805197]
[1744602133709,12.88222192,1629.2,1628.8,5.893737]
[1744602134618,4.91129,1628.9,1628.6,4.91211]
[1744602135184,9.82275,1628.9,1628.5,11.76037]
[1744602135417,4.97280192,1628.8,1628.5,4.91237]
[1744602135617,4.91261,1628.5,1628.2,4.91332]
[1744602136622,4.91248,1628.6,1628.2,4.91332]
[1744602136787,9.88605192,1628.6,1628.2,5.896021]
[1744602137187,5.7185,1628.5,1628.2,5.896021]
[1744602139330,0.806,1628.5,1628.2,10.809251]
[1744602139535,0.7927,1628.6,1628.4,4.91265]
[1744602139697,0.06117192,1628.7,1628.4,9.8253]
[1744602140031,0.06117192,1628.7,1628.4,10.88608]
[1744602140232,8.70433,1628.8,1628.5,4.91238]
[1744602140233,0.85387192,1628.8,1628.5,4.91238]
[1744602140933,5.76547192,1628.8,1628.4,5.97343]
[1744602141732,0.7927,1628.8,1628.6,4.91209]
[1744602142032,3.06117192,1628.9,1628.6,5.894546]
[1744602142817,3.0,1628.9,1628.6,10.806586]
[1744602144267,12.55271,1629.0,1628.7,4.91186]
[1744602144412,12.61388192,1629.0,1628.7,4.91186]
[1744602146510,12.61388192,1629.0,1628.6,6.676996]
[1744602146712,9.82296,1628.9,1628.5,5.38336196]
[1744602147108,4.91174,1628.8,1628.5,5.38335196]
[1744602147312,4.97291192,1628.8,1628.5,5.38335196]
[1744602147743,4.97291192,1628.8,1628.5,4.91245]
[1744602148262,4.97291192,1628.8,1628.4,5.97356]
[1744602148427,5.76586192,1628.7,1628.4,5.97356]
[1744602149057,5.76586192,1628.7,1628.0,5.36497652]
[1744602149058,4.91293,1628.4,1628.0,5.36497652]
[1744602149261,7.69887192,1628.6,1628.3,4.91308]
[1744602149566,7.6377,1628.6,1628.3,9.82603]
[1744602149766,7.6377,1628.6,1628.3,4.91295]
[1744602149960,12.54992,1628.6,1628.3,5.97383]
[1744602151431,7.6377,1628.6,1628.3,5.97383]
[1744602151636,7.6377,1628.6,1628.3,5.97382]
[1744602151930,7.6377,1628.6,1628.4,4.91278]
[1744602152134,0.7927,1628.6,1628.4,4.91278]
[1744602152335,0.7927,1628.6,1628.4,6.00144]
[1744602153754,0.7927,1628.6,1628.4,1.08866]
[1744602153941,0.7927,1628.6,1628.3,9.82586]
[1744602154342,0.7927,1628.6,1628.3,4.91292]
[1744602154885,5.70494,1628.6,1628.3,4.91292]
[1744602156989,0.7927,1628.6,1628.3,9.82587]
[1744602157557,0.7927,1628.6,1628.3,4.91292]
[1744602157853,0.7927,1628.6,1628.3,5.973799]
[1744602158054,0.7927,1628.6,1628.3,10.886739]
[1744602159187,0.7927,1628.6,1628.3,10.886779]
[1744602160080,0.7927,1628.6,1628.3,5.973799]
[1744602163211,4.91296,1628.4,1628.0,6.18382652]
[1744602163414,4.91296,1628.4,1628.0,11.09771652]
[1744602163711,4.91282,1628.4,1628.1,4.91344]
[1744602164215,4.9138,1628.1,1627.8,0.8186]
[1744602164372,0.06117192,1628.4,1628.1,4.91358]
[1744602164718,4.97398192,1628.4,1628.1,4.91356]
[1744602165076,9.88695192,1628.4,1628.0,4.91395]
[1744602165379,9.82645,1628.3,1627.9,5.36473349]
[1744602165580,4.91319,1628.3,1628.0,0.53647335]
[1744602166513,9.88691192,1628.4,1628.0,5.45046335]
[1744602166690,4.97401192,1628.4,1628.0,10.36432335]
[1744602167215,9.88697192,1628.4,1628.0,5.45033335]
[1744602168216,0.7881,1628.2,1627.9,4.91427]
[1744602168821,0.7881,1628.2,1627.9,10.28257117]
[1744602170834,0.7881,1628.2,1628.0,4.91391]
[1744602171019,5.76038192,1628.4,1628.0,9.82778]
[1744602171517,10.67335192,1628.4,1628.0,4.91387]
[1744602172013,10.67335192,1628.4,1627.9,5.36839117]
[1744602172014,4.91317,1628.3,1627.9,5.36839117]
[1744602172215,4.91317,1628.3,1628.0,0.53683912]
[1744602172599,0.84757192,1628.4,1628.0,0.53683912]
[1744602172799,3.0,1628.6,1628.0,0.53683912]
[1744602172800,8.69875,1628.6,1628.3,4.91298]
[1744602173011,5.75992192,1628.6,1628.3,4.91298]
[1744602173716,5.69875,1628.6,1628.3,4.91298]
[1744602173915,7.6334,1628.8,1628.5,4.91223]
[1744602174123,5.69742,1629.0,1628.6,4.91218]
[1744602174305,0.84757192,1629.0,1628.7,4.9117]
[1744602174623,9.0216296,1629.1,1628.7,5.73199]
[1744602175008,4.91143,1628.9,1628.5,6.22994379]
[1744602175192,0.06117192,1628.9,1628.6,4.91194]
[1744602175398,4.91102,1629.0,1628.7,0.491194]
[1744602175631,0.84757192,1628.9,1628.6,4.91194]
[1744602176244,0.84757192,1628.9,1628.4,6.16]
[1744602176245,4.91204,1628.7,1628.4,6.16]
[1744602176553,4.91204,1628.7,1628.4,11.07277]
[1744602176707,4.97292192,1628.8,1628.4,16.04680415]
[1744602176907,0.7864,1628.9,1628.6,4.91216]
[1744602177106,0.84757192,1628.9,1628.6,4.91203]
[1744602177844,5.75888192,1628.9,1628.6,4.91203]
[1744602178050,5.75888192,1628.9,1628.4,17.71806471]
[1744602178474,4.91168,1628.8,1628.4,11.07253]
[1744602178886,5.75887192,1628.9,1628.5,4.91232]
[1744602179085,0.84757192,1628.9,1628.6,4.91219]
[1744602179236,0.7864,1628.9,1628.6,4.91219]
[1744602179773,5.69779,1628.9,1628.5,4.91232]
[1744602180243,5.69779,1628.9,1628.6,0.15643524]
[1744602180662,0.06117192,1628.8,1628.6,0.15643524]
[1744602180844,4.97288192,1628.8,1628.6,0.15643524]
[1744602181044,4.97288192,1628.8,1628.4,4.91278]
[1744602181045,4.97288192,1628.8,1628.4,9.82542]
[1744602181274,4.97288192,1628.8,1628.4,4.91264]
[1744602181430,4.97288192,1628.8,1628.5,0.15736512]
[1744602181631,9.88472192,1628.8,1628.5,0.15736512]
[1744602182040,9.88468192,1628.8,1628.5,0.15736512]
[1744602182241,4.97288192,1628.8,1628.5,0.15736512]
[1744602183881,4.91191,1628.7,1628.5,0.15736512]
[1744602184081,4.97288192,1628.8,1628.5,0.15736512]
[1744602184381,4.9117,1628.8,1628.6,0.15719307]
[1744602184689,0.06117192,1628.7,1628.6,0.15719307]
[1744602184889,4.97306192,1628.7,1628.6,0.15719307]
[1744602185259,4.97306192,1628.7,1628.4,4.91265]
[1744602185464,4.97306192,1628.7,1628.6,0.15491848]
[1744602185670,4.97306192,1628.7,1628.5,0.15544364]
[1744602185863,4.97306192,1628.7,1628.6,0.15517117]
[1744602186277,4.97306192,1628.7,1628.4,4.91265]
[1744602186664,4.97306192,1628.7,1628.5,0.15544349]
[1744602187158,4.97306192,1628.7,1628.3,6.19523296]
[1744602187359,4.97306192,1628.7,1628.4,0.77549198]
[1744602189098,4.97306192,1628.7,1628.4,5.68827198]
[1744602189297,4.97287192,1628.8,1628.4,5.68827198]
[1744602189509,9.88465192,1628.8,1628.4,5.68827198]
[1744602189804,4.91195,1628.7,1628.4,5.68827198]
[1744602190178,4.91195,1628.7,1628.4,0.77549198]
[1744602190683,5.77799192,1628.6,1628.4,0.15596868]
[1744602190901,10.69048192,1628.6,1628.4,0.15596868]
[1744602191061,10.69048192,1628.6,1628.2,4.9134]
[1744602191262,10.69048192,1628.6,1628.5,0.15544347]
[1744602191461,10.69048192,1628.6,1628.2,4.9134]
[1744602191784,4.91371,1628.1,1627.9,2.39241883]
[1744602191988,4.91371,1628.1,1627.7,5.73351899]
[1744602192314,6.84,1628.2,1627.9,4.91417]
[1744602192597,4.91283,1628.4,1628.1,0.7572]
[1744602192810,12.55694,1628.5,1628.2,4.91339]
[1744602192988,12.61811192,1628.5,1628.2,4.91339]
[1744602193369,6.84,1628.5,1628.2,4.91323]
[1744602193669,6.84,1628.5,1628.3,4.91303]
[1744602193868,6.84,1628.5,1628.3,5.73711417]
[1744602194267,0.06117192,1628.6,1628.3,5.73711417]
[1744602194489,5.77773192,1628.7,1628.3,5.73705417]
[1744602194795,5.77773192,1628.7,1628.4,0.14455265]
[1744602195298,10.68980192,1628.7,1628.4,0.14455265]
[1744602195601,10.68980192,1628.7,1628.3,5.73705417]
[1744602195896,10.68980192,1628.7,1628.4,0.71785348]
[1744602196474,16.66335,1628.8,1628.4,6.38774348]
[1744602196694,11.75159,1628.8,1628.4,6.38774348]
[1744602196906,11.81276192,1628.8,1628.4,6.38774348]
[1744602199170,0.06117192,1628.8,1628.5,4.91249]
[1744602199415,4.97221192,1629.0,1628.6,5.60576752]
[1744602199623,4.97221192,1629.0,1628.6,10.51777752]
[1744602200215,4.97221192,1629.0,1628.6,5.60576752]
[1744602200413,4.97221192,1629.0,1628.6,5.54436552]
[1744602200750,9.82284,1628.9,1628.6,0.63242552]
[1744602201110,4.9113,1628.9,1628.6,0.63242552]
[1744602202056,4.97219192,1629.0,1628.6,5.54460552]
[1744602202209,4.97219192,1629.0,1628.7,0.55446055]
[1744602202539,5.71509,1629.1,1628.7,11.13508055]
[1744602202737,5.77626192,1629.1,1628.7,11.13508055]
[1744602203034,4.91102,1629.0,1628.8,0.14058256]
[1744602203221,4.91128,1628.9,1628.8,0.14058256]
[1744602203522,4.91102,1629.0,1628.8,0.14058256]
[1744602206145,4.91102,1629.0,1628.7,0.7572]
[1744602206638,9.82221,1629.0,1628.8,0.13982464]
[1744602206839,4.91128,1628.9,1628.8,0.13982464]
[1744602207251,4.91165,1628.8,1628.5,0.7572]
[1744602207447,5.71605,1628.8,1628.4,5.48637542]
[1744602207746,4.97312192,1628.7,1628.4,5.48637542]
[1744602207949,4.91195,1628.7,1628.4,5.48637542]
[1744602208143,0.8044,1628.8,1628.4,5.54773629]
[1744602208341,4.97249192,1628.9,1628.5,5.46714363]
[1744602208748,4.97249192,1628.9,1628.5,10.37947363]
[1744602209547,4.97249192,1628.9,1628.5,10.37950363]
[1744602209936,9.88395192,1628.9,1628.5,5.46710363]
[1744602210136,4.91162,1628.8,1628.5,5.46710363]
[1744602210622,4.91162,1628.8,1628.5,0.55477363]
[1744602210969,0.86557192,1628.7,1628.6,0.14036923]
[1744602211135,5.77746192,1628.7,1628.6,0.14036923]
[1744602211844,4.91235,1628.6,1628.2,4.97476888]
[1744602212046,4.91235,1628.6,1628.2,4.97469888]
[1744602212249,11.74288,1628.8,1628.4,5.6697]
[1744602212451,11.80405192,1628.8,1628.4,6.23667]
[1744602212750,6.831,1628.8,1628.6,4.9121]
[1744602213115,4.91102,1629.0,1628.6,9.88556701]
[1744602213318,4.97219192,1629.0,1628.7,0.7572]
[1744602214259,4.91102,1629.0,1628.7,0.7572]
[1744602214760,4.91102,1629.0,1628.7,1.324122]
[1744602215466,9.88335192,1629.0,1628.7,1.324122]
[1744602215661,4.91129,1628.9,1628.5,4.91246]
[1744602215834,4.91129,1628.9,1628.5,5.66705]
[1744602216033,4.91129,1628.9,1628.5,10.57938]
[1744602216860,4.91129,1628.9,1628.5,5.66703]
[1744602217161,9.82277,1628.9,1628.5,6.781709]
[1744602217347,0.8316,1628.8,1628.5,6.781709]
[1744602217533,0.8316,1628.8,1628.5,11.694099]
[1744602217861,4.91129,1628.9,1628.6,4.91219]
[1744602220160,4.91129,1628.9,1628.5,11.694039]
[1744602221059,4.91129,1628.9,1628.6,4.91217]
[1744602221258,5.80379192,1629.0,1628.6,9.88559435]
[1744602221464,5.80379192,1629.0,1628.6,10.99969734]
[1744602222961,10.71499192,1629.0,1628.6,6.08752734]
[1744602223875,4.97233192,1629.0,1628.6,6.08765734]
[1744602224050,4.91116,1629.0,1628.6,9.82424]
[1744602224457,9.88348192,1629.0,1628.6,9.82424]
[1744602225075,4.91115,1629.0,1628.6,9.82424]
[1744602225445,9.88349192,1629.0,1628.6,4.91208]
[1744602225780,9.88349192,1629.0,1628.6,9.82415]
[1744602225951,9.88349192,1629.0,1628.6,10.882035]
[1744602226273,4.91134,1628.9,1628.6,4.91213]
[1744602226486,5.80377192,1629.0,1628.6,4.91209]
[1744602226674,5.80377192,1629.0,1628.6,9.82413]
[1744602229979,5.80377192,1629.0,1628.6,9.8855239]
[1744602230382,5.80377192,1629.0,1628.6,9.82413]
[1744602230678,11.74173,1629.1,1628.7,9.82361]
[1744602230979,11.80290192,1629.1,1628.7,9.82361]
[1744602231856,11.74173,1629.1,1628.8,5.73966]
[1744602233876,4.91073,1629.1,1628.8,0.8281]
[1744602235880,4.91073,1629.1,1628.8,5.73965]
[1744602237086,9.82162,1629.1,1628.8,0.8281]
[1744602239801,4.91073,1629.1,1628.8,0.8281]
[1744602240166,4.91073,1629.1,1628.8,1.93955528]
[1744602240367,4.91073,1629.1,1628.8,2.00094203]
[1744602240802,4.91073,1629.1,1628.8,1.93955528]
[1744602241209,4.91073,1629.1,1628.8,0.88948675]
[1744602241506,9.8216,1629.1,1628.8,0.8281]
[1744602241708,4.91106,1629.0,1628.8,0.8281]
[1744602243314,4.91071,1629.1,1628.8,0.88948714]
[1744602243616,5.73148192,1629.2,1628.9,4.91117]
[1744602243617,0.06117192,1629.2,1628.9,4.91117]
[1744602243806,12.50301,1629.4,1629.0,10.37418685]
[1744602243986,12.50301,1629.4,1629.0,5.46332685]
[1744602244484,11.74081,1629.4,1629.2,0.7852]
[1744602245019,11.74081,1629.4,1629.1,5.69587]
[1744602245721,9.76511768,1629.6,1629.2,4.91024]
[1744602246022,4.04964768,1629.6,1629.4,4.90967]
[1744602246216,4.04964768,1629.6,1629.3,6.186204]
[1744602246217,4.04964768,1629.6,1629.3,6.186154]
[1744602246518,4.04964768,1629.6,1629.5,4.90948]
[1744602247282,4.04964768,1629.6,1629.5,5.69468]
[1744602247517,4.04964768,1629.6,1629.5,6.755114]
[1744602247936,6.17,1629.8,1629.5,11.664594]
[1744602248094,6.17,1629.8,1629.7,4.90887]
[1744602248420,10.21964768,1630.0,1629.8,4.90845]
[1744602248607,10.21964768,1630.0,1629.8,5.477815]
[1744602248921,10.21964768,1630.0,1629.7,5.69405]
[1744602249394,10.21964768,1630.0,1629.8,4.96991877]
[1744602249595,10.21964768,1630.0,1629.9,5.69347]
[1744602249596,4.04964768,1630.0,1629.9,5.69347]
[1744602250306,4.04964768,1630.0,1629.8,5.69377]
[1744602250618,4.04964768,1630.0,1629.8,6.57785741]
[1744602250819,4.04964768,1630.0,1629.8,11.5475962]
[1744602251188,4.04964768,1630.0,1629.8,1.7306362]
[1744602251495,4.90827,1629.9,1629.6,0.7852]
[1744602251798,4.96937192,1630.0,1629.4,3.93230411]
[1744602252002,0.8062,1630.1,1629.7,4.90887]
[1744602252003,5.77514192,1630.1,1629.7,4.90887]
[1744602252324,5.77514192,1630.1,1629.7,5.69407]
[1744602252700,5.77514192,1630.1,1629.7,6.754374]
[1744602253002,4.90799,1630.0,1629.7,6.754374]
[1744602253202,4.9082,1630.0,1629.7,1.060304]
[1744602253424,9.8164,1630.0,1629.6,4.90914]
[1744602253601,4.9082,1630.0,1629.6,4.90914]
[1744602254603,4.9082,1630.0,1629.6,9.81817]
[1744602255628,4.90767,1630.1,1629.7,5.75531375]
[1744602256125,4.90767,1630.1,1629.7,5.75530375]
[1744602256296,4.90767,1630.1,1629.7,6.58419079]
[1744602256496,9.81554,1630.1,1629.7,6.58419079]
[1744602257497,4.90767,1630.1,1629.7,11.49290079]
[1744602257698,4.90767,1630.1,1629.8,4.90857]
[1744602258653,8.71329,1630.3,1630.0,5.69306]
[1744602258808,8.71329,1630.3,1630.0,0.7852]
[1744602259007,8.71329,1630.3,1630.0,1.354536]
[1744602259236,65.23067,1630.4,1630.0,6.262486]
[1744602259441,65.23067,1630.4,1630.1,4.90761]
[1744602259649,12.57467,1630.4,1630.1,4.90761]
[1744602260028,0.02,1630.4,1630.3,4.90707]
[1744602260229,0.02,1630.4,1630.3,6.700302]
[1744602260449,0.02,1630.4,1630.3,1.793232]
[1744602260654,0.02,1630.4,1630.3,0.981432]
[1744602262157,5.75467,1630.4,1630.0,1.381136]
[1744602262355,4.90707,1630.3,1630.0,1.381136]
[1744602262653,9.81434,1630.3,1630.0,1.381136]
[1744602262810,4.90707,1630.3,1630.0,1.381136]
[1744602263005,0.90907192,1630.4,1630.0,4.52824011]
[1744602263248,0.02,1630.4,1630.3,0.8118]
[1744602263452,0.02,1630.4,1630.3,5.71887]
[1744602266686,0.02,1630.4,1630.3,5.7801912]
[1744602267035,0.02,1630.4,1630.3,5.71887]
[1744602270474,0.02,1630.4,1630.3,5.78019393]
[1744602270640,0.02,1630.4,1630.3,7.21019255]
[1744602271777,0.02,1630.4,1630.3,7.14886862]
[1744602273374,0.02,1630.4,1630.3,7.21018816]
[1744602274076,0.02,1630.4,1630.3,10.21018816]
[1744602274276,0.02,1630.4,1630.3,16.92018816]
[1744602274480,0.02,1630.4,1630.3,16.85886862]
[1744602277771,0.02,1630.4,1630.3,17.64580103]
[1744602278157,0.02,1630.4,1630.3,20.79290514]
[1744602278405,0.81487192,1631.3,1630.7,9.81172]
[1744602278602,0.81487192,1631.3,1630.9,4.90499]
[1744602279358,0.81487192,1631.3,1631.0,4.90494]
[1744602279558,0.7537,1631.3,1631.0,4.90494]
[1744602279800,0.7537,1631.3,1631.0,9.80976]
[1744602280005,0.7537,1631.3,1631.0,9.80966]
[1744602280173,0.7537,1631.3,1631.1,0.980966]
[1744602280564,0.7537,1631.3,1631.0,9.8709544]
[1744602280976,0.7537,1631.3,1631.0,9.80965]
[1744602281174,0.7537,1631.3,1631.0,4.90482]
[1744602281364,0.7537,1631.3,1631.1,4.90456]
[1744602282116,0.7537,1631.3,1631.2,4.90436]
[1744602282297,0.7537,1631.3,1631.2,5.89138243]
[1744602282460,0.7737,1631.4,1631.2,5.89138243]
[1744602282978,0.7737,1631.4,1631.3,4.90406]
[1744602282979,0.02,1631.4,1631.3,4.90406]
[1744602283178,0.02,1631.4,1631.2,5.89138243]
[1744602283398,0.02,1631.4,1631.3,0.58913824]
[1744602283780,0.02,1631.4,1631.2,0.98702243]
[1744602283977,0.02,1631.4,1631.1,4.90465]
[1744602284817,0.02,1631.4,1631.1,9.80916]
[1744602286211,0.02,1631.4,1631.2,9.80841]
[1744602286416,0.02,1631.4,1631.3,4.90406]
[1744602287005,0.7737,1631.4,1631.2,4.90419]
[1744602287316,0.7737,1631.4,1631.2,9.8084]
[1744602287490,0.7737,1631.4,1631.3,4.90406]
[1744602288837,0.7737,1631.4,1631.2,9.80839]
[1744602289133,0.7737,1631.4,1631.3,4.90406]
[1744602289336,0.7737,1631.4,1631.2,10.789219]
[1744602289837,0.7737,1631.4,1631.3,4.96535777]
[1744602289838,0.02,1631.4,1631.3,4.96535777]
[1744602290029,0.02,1631.4,1631.3,4.90406]
[1744602290342,0.02,1631.4,1631.2,5.885029]
[1744602290501,0.02,1631.4,1631.2,9.80843]
[1744602290703,0.02,1631.4,1631.3,4.90406]
[1744602291446,0.02,1631.4,1631.2,4.90419]
[1744602291756,0.02,1631.4,1631.1,4.90463]
[1744602291926,5.71806,1631.3,1630.9,4.9051]
[1744602292128,0.06117192,1631.2,1630.9,4.9051]
[1744602292511,0.8139,1631.1,1630.9,4.9051]
[1744602292818,5.7187,1631.1,1630.7,4.90583]
[1744602293039,0.87507192,1631.0,1630.5,4.90624]
[1744602293273,5.78032192,1631.0,1630.6,9.81215]
[1744602293406,0.8139,1630.9,1630.6,4.90599]
[1744602293955,0.8139,1630.9,1630.6,9.812]
[1744602295540,0.8139,1630.9,1630.7,4.90574]